Cogmind - Beta 13 @@@ ROGUE MODE // 2024.06.02 @ 15:36:18 Player: Sionnis Result: Self-destructed Performance ------------- Evolutions (2) 1000 Regions Visited (4) 800 Robots Destroyed (36) 180 Value Destroyed (698) 698 Prototype IDs (10) 200 Alien Tech Used (0) 0 Bonus (0) 0 TOTAL SCORE: 2878 Bonus ------- None Cogmind --------- Core Integrity 550/550 Matter 280/300 Energy 237/250 System Corruption 0% Temperature Cool (0) Movement Flying (80) Ox1 Location -8/Materials Parts ------- > --- POWER (1) -------- Ion Engine > --- PROPULSION (6) --- Flightbrick > --- UTILITY (2+3) ---- Large Storage Unit Makeshift Light Armor Plating > --- WEAPON (2) ------- Subdweller Beam Cannon Shotgun > --- INVENTORY (15) --- Wheel Wheel Wheel Targeting Computer Hacking Suite Shotgun Shotgun Shotgun Subdweller Machine Gun Subdweller Shrapnel Launcher Makeshift Sword Peak State ------------ > --- POWER ------------ Ion Engine > --- PROPULSION ------- Wheel Wheel Flightbrick > --- UTILITY ---------- Large Storage Unit Makeshift Light Armor Plating > --- WEAPON ----------- Subdweller Beam Cannon Shotgun > --- INVENTORY -------- Wheel Wheel Wheel Targeting Computer Hacking Suite Shotgun Shotgun Shotgun Subdweller Machine Gun Subdweller Shrapnel Launcher Makeshift Sword [Rating: 50] Favorites ----------- Power Light Ion Engine Engine Light Ion Engine Propulsion Wheel Wheel Wheel Flight Unit Flightbrick Utility Large Storage Unit Storage Large Storage Unit Processor Targeting Computer Protection Makeshift Light Armor Plating Weapon Shotgun Energy Cannon Subdweller Beam Cannon Ballistic Gun Shotgun Build | -11 -10 -10 -10 -8 ------- Run | Yrd Mat Min Sub Mat Slots Evolved 4 | . . . . 4 Power . | . . . . . Propulsion 4 | . . . . 4 Utility . | . . . . . Weapon . | . . . . . Parts Attached 33 | 3 6 1 22 1 Power 5 | 1 1 . 3 . Engine 5 | 1 1 . 3 . Core . | . . . . . Reactor . | . . . . . Propulsion 13 | 2 1 . 9 1 Treads . | . . . . . Leg . | . . . . . Wheel 12 | 2 1 . 9 . Hover . | . . . . . Flight 1 | . . . . 1 Utility 4 | . 2 . 2 . Device . | . . . . . Storage 2 | . 1 . 1 . Processor 1 | . 1 . . . Hackware . | . . . . . Protection 1 | . . . 1 . Artifact . | . . . . . Weapon 11 | . 2 1 8 . Energy Gun . | . . . . . Energy Cannon 2 | . . . 2 . Ballistic Gun 9 | . 2 1 6 . Ballistic Cannon . | . . . . . Launcher . | . . . . . Special Weapon . | . . . . . Impact Weapon . | . . . . . Slashing Weapon . | . . . . . Piercing Weapon . | . . . . . Special Melee Weapon . | . . . . . Unidentified Prototypes . | . . . . . Parts Lost 7 | . . 2 5 . Power . | . . . . . Propulsion 4 | . . 1 3 . Utility . | . . . . . Weapon 3 | . . 1 2 . Highest Loss Streak 2 | . . 2 2 . To Critical Strikes . | . . . . . Average Slot Usage (%) 96 | . 95 90 97 . Engine 14 | . 14 14 14 . Wheel 25 | . 28 18 25 . Storage 13 | . 12 14 14 . Processor 12 | . 13 14 11 . Protection 1 | . . . 2 . Energy Cannon 4 | . . . 7 . Ballistic Gun 23 | . 25 28 20 . Naked Turns . | . . . . . Heaviest Build 40 | 3 29 29 40 . Greatest Support 30 | 20 20 20 30 . Greatest Overweight (x) 3 | . 1 2 3 . Average Overweight (x) . | . . 1 1 . Largest Inventory Capacity 15 | 5 15 15 15 15 Average Capacity 14 | 5 13 15 15 15 Most Carried 15 | . 15 15 15 11 Average Carried 12 | . 9 14 14 11 Final Capacity 15 | 5 15 15 15 15 Final Carried 15 | . 15 14 15 11 Class Distribution -------------------- 100% | Mutant Dominant Class ---------------- Mutant | -10/Materials Mutant | -10/Mines Mutant | -10/Subcaves Mutant | -8/Materials Resources | -11 -10 -10 -10 -8 ----------- Run | Yrd Mat Min Sub Mat Matter Collected 1056 | 134 410 162 350 . Remotely . | . . . . . Salvage Created 945 | . 421 81 443 . Parts 73 | . 32 5 36 . Haulers Intercepted 1 | . 1 . . . Recyclers Shooed 2 | . 1 1 . . Parts Field Recycled . | . . . . . Retrieved Matter . | . . . . . Parts Self-Destructed 19 | . . . 19 . Prevented . | . . . . . Kills | -11 -10 -10 -10 -8 ------- Run | Yrd Mat Min Sub Mat Combat Hostiles Destroyed 30 | . 7 9 14 . Guns 24 | . 7 9 8 . Cannons 6 | . . . 6 . Classes Destroyed 13 | . 9 2 2 . Worker 2 | . 2 . . . Builder 2 | . 2 . . . Tunneler 1 | . 1 . . . Hauler 1 | . 1 . . . Recycler 2 | . 2 . . . Operator 1 | . 1 . . . Watcher 2 | . 2 . . . Swarmer 13 | . 6 3 4 . Grunt 1 | . 1 . . . Demolisher 1 | . . 1 . . Artisan 1 | . . . 1 . Subdweller 10 | . . . 10 . Assembled 5 | . . 5 . . Best Kill Streak 5 | . 5 4 4 . Combat Bots Only 4 | . 3 4 4 . Max Kills in Single Turn 2 | . 2 1 2 . Gunslinging 1 | . . . 1 . Exploded . | . . . . . Melee . | . . . . . Uniques/NPCs Destroyed . | . . . . . Combat | -11 -10 -10 -10 -8 -------- Run | Yrd Mat Min Sub Mat Hostile Shots Fired 124 | . 21 25 78 . Missed 32 | . 8 3 21 . Damage Taken 1424 | . 105 362 957 . Core 240 | . 15 70 155 . Absorbed by Shields . | . . . . . Core Remaining (%) 52 | 100 . . 4 . Volleys Fired 115 | . 33 19 63 . Largest 2 | . 2 2 2 . Hottest 113 | . 46 46 113 . Shots Fired 203 | . 66 38 99 . Gun 150 | . 66 38 46 . Cannon 53 | . . . 53 . Launcher . | . . . . . Special . | . . . . . Kinetic 150 | . 66 38 46 . Thermal 53 | . . . 53 . Explosive . | . . . . . Electromagnetic . | . . . . . Robot Hit Streak 22 | . 5 6 22 . Robot Miss Streak 7 | . 5 7 2 . Penetration Max . | . . . . . Secondary Targets 6 | . 1 3 2 . Max Gunslinging Chain 1 | . 1 1 1 . Shots Hit Robots 130 | . 48 22 60 . Core Hits 68 | . 28 16 24 . Critical Kills . | . . . . . Critical Parts Destroyed 1 | . 1 . . . Critical Strikes 1 | . 1 . . . Destroy 1 | . 1 . . . Melee Attacks . | . . . . . Impact . | . . . . . Slashing . | . . . . . Piercing . | . . . . . Sneak Attacks . | . . . . . Combat Hostiles . | . . . . . Follow-up Attacks . | . . . . . Damage Inflicted 2213 | . 683 296 1234 . Guns 1675 | . 683 296 696 . Cannons 538 | . . . 538 . Explosions . | . . . . . Melee . | . . . . . Ramming . | . . . . . Kinetic 1675 | . 683 296 696 . Thermal 538 | . . . 538 . Explosive . | . . . . . Electromagnetic . | . . . . . Impact . | . . . . . Slashing . | . . . . . Piercing . | . . . . . Highest Corruption . | . . . . . Average Corruption . | . . . . . Corruption Purged . | . . . . . Corruption Blocked . | . . . . . Overload Shots . | . . . . . Overflow Damage 4 | . . . 4 . Projectiles 4 | . . . 4 . Explosions . | . . . . . Melee . | . . . . . Knockbacks . | . . . . . Impact . | . . . . . Kinetic . | . . . . . Secondary . | . . . . . Self-Inflicted Damage . | . . . . . Shots . | . . . . . Rammed . | . . . . . Targets Rammed . | . . . . . Kicked . | . . . . . Crushed . | . . . . . Highest Temperature 43 | . . 25 43 . Average Temperature 19 | . . 12 21 . Received Heat Transfer 362 | . . 80 282 . Siege Activations . | . . . . . Robots Corrupted . | . . . . . Combat Hostiles . | . . . . . Parts Fried . | . . . . . Impact Corruptions . | . . . . . Robots Melted . | . . . . . Combat Hostiles . | . . . . . Parts Melted 4 | . . . 4 . Heat Transferred 740 | . . . 740 . Parts Sabotaged . | . . . . . Parts Stolen . | . . . . . Parts Stripped . | . . . . . Power Chain Reactions . | . . . . . Alert | -11 -10 -10 -10 -8 ------- Run | Yrd Mat Min Sub Mat Peak Influence 306 | . 306 155 . 115 Initial 115 | . . 70 . 115 Average 138 | . 134 152 . 115 Maximum Alert Level 1 | . 1 . . . Low Security (%) 89 | 100 82 100 . 100 Level 1 10 | . 17 . . . Level 2 . | . . . . . Level 3 . | . . . . . Level 4 . | . . . . . Level 5 . | . . . . . High Security . | . . . . . Max Security . | . . . . . Squads Dispatched 2 | . 2 . . . Investigation . | . . . . . Extermination . | . . . . . Reinforcement 2 | . 2 . . . Assault . | . . . . . Garrison . | . . . . . Intercept . | . . . . . Searches Triggered . | . . . . . Construction Impeded . | . . . . . Haulers Reinforced . | . . . . . Active Scanning Responses . | . . . . . Cargo Convoy Interrupts . | . . . . . Stealth | -11 -10 -10 -10 -8 --------- Run | Yrd Mat Min Sub Mat Distress Signals 1 | . 1 . . . Communications Jammed . | . . . . . Distress Signals . | . . . . . Times Spotted 48 | . 17 11 20 . Peak Tracking Total 6 | . 4 5 6 . Tactical Retreats 3 | . 1 . 2 . Traps | -11 -10 -10 -10 -8 ------- Run | Yrd Mat Min Sub Mat Traps Triggered . | . . . . . Indirectly . | . . . . . Trap Hack Attempts . | . . . . . Triggered . | . . . . . Disarmed . | . . . . . Reprogrammed . | . . . . . Reused . | . . . . . Traps Extracted . | . . . . . Installed . | . . . . . Triggered . | . . . . . Machines | -11 -10 -10 -10 -8 ---------- Run | Yrd Mat Min Sub Mat Machines Disabled 1 | . . . 1 . Max in Single Turn 1 | . . . 1 . Machines Repaired . | . . . . . Machines Dismantled . | . . . . . Machines Sabotaged . | . . . . . Overloaded Fab Kills . | . . . . . Hacking | -11 -10 -10 -10 -8 --------- Run | Yrd Mat Min Sub Mat Machines Accessed 3 | . 2 . 1 . Terminals 2 | . 2 . . . Fabricators . | . . . . . Repair Stations . | . . . . . Recycling Units . | . . . . . Scanalyzers . | . . . . . Garrison Access . | . . . . . Total Hacks 15 | . 6 . 9 . Successful 10 | . 1 . 9 . Failed 4 | . 4 . . . Catastrophic . | . . . . . Database Lockouts 1 | . 1 . . . Manual 7 | . 7 . . . Terminals 6 | . 6 . . . Fabricators . | . . . . . Repair Stations . | . . . . . Recycling Units . | . . . . . Scanalyzers . | . . . . . Garrison Access . | . . . . . Terminal Hacks 10 | . 1 . 9 . Record 8 | . . . 8 . Robot Analysis 1 | . 1 . . . Derelict Proto ID Bank 1 | . . . 1 . Fabricator Hacks . | . . . . . Repair Station Hacks . | . . . . . Recycling Unit Hacks . | . . . . . Scanalyzer . | . . . . . Garrison Access Hacks . | . . . . . Unauthorized Hacks . | . . . . . Terminals . | . . . . . Fabricators . | . . . . . Repair Stations . | . . . . . Recycling Units . | . . . . . Scanalyzers . | . . . . . Garrison Access . | . . . . . Data Cores Recovered . | . . . . . Used . | . . . . . Hacking Detections 3 | . 3 . . . Full Trace Events 1 | . 1 . . . Feedback Events . | . . . . . Feedback Blocked . | . . . . . Robot Schematics Acquired . | . . . . . Robots Built . | . . . . . Authchips . | . . . . . Time . | . . . . . Total Robot Build Rating . | . . . . . Part Schematics Acquired . | . . . . . Parts Built . | . . . . . Authchips . | . . . . . Time . | . . . . . Total Part Build Rating . | . . . . . Parts Repaired . | . . . . . Time . | . . . . . Parts Recycled . | . . . . . Recycled Matter . | . . . . . Retrieved Matter . | . . . . . Retrieved Components . | . . . . . Parts Scanalyzed . | . . . . . Part Schematics Acquired . | . . . . . Parts Damaged . | . . . . . Bothacking | -11 -10 -10 -10 -8 ------------ Run | Yrd Mat Min Sub Mat Used RIF Installer . | . . . . . Robots Hacked . | . . . . . Non-combat . | . . . . . Combat . | . . . . . Robot Hacks Applied . | . . . . . Relay Couplers Released . | . . . . . Fabnet Peak Effective % . | . . . . . Robots Rewired . | . . . . . Allies Hacked . | . . . . . Hacks Repelled . | . . . . . Allies | -11 -10 -10 -10 -8 -------- Run | Yrd Mat Min Sub Mat Total Allies . | . . . . . Largest Group . | . . . . . Highest-Rated Group . | . . . . . Highest-Rated Ally . | . . . . . Total Orders . | . . . . . Ally Attacks . | . . . . . Total Damage . | . . . . . Kills . | . . . . . Allies Corrupted . | . . . . . Allies Melted . | . . . . . Intel | -11 -10 -10 -10 -8 ------- Run | Yrd Mat Min Sub Mat Robot Analysis Total 1 | . 1 . . . Derelict Logs Recovered . | . . . . . Drone Launches . | . . . . . Drone Recoveries . | . . . . . Exploration | -11 -10 -10 -10 -8 ------------- Run | Yrd Mat Min Sub Mat Turns Passed 2116 | 20 554 316 1223 3 Spaces Moved 1543 | 21 451 104 967 . Core 4 | 4 . . . . Treads . | . . . . . Legs . | . . . . . Wheels 1539 | 17 451 104 967 . Hover . | . . . . . Flight . | . . . . . Fastest Speed 50 | 50 80 95 95 . Average Speed 98 | 74 92 103 101 . Slowest Speed 125 | 80 95 110 125 . Overloaded Moves . | . . . . . Propulsion Burnouts . | . . . . . Robots Hopped . | . . . . . Cave-ins Triggered . | . . . . . Exploration Rate (%) 30 | 3 55 27 66 1 Regions Visited 4 Branch Regions 2 Pre-discovered Areas . | . . . . . Known Exits Taken . | . . . . . Unknown Exits Taken 4 | 1 1 1 1 . Scrap Searched 4 | . . . 4 . Spaces Dug . | . . . . . Terrain Destroyed 4 | . . . 4 . Melee . | . . . . . Projectile 4 | . . . 4 . AOE . | . . . . . Terrain Rammed . | . . . . . Walls Destroyed . | . . . . . Machines Disabled . | . . . . . Actions | -11 -10 -10 -10 -8 --------- Run | Yrd Mat Min Sub Mat Total 1933 | 23 521 274 1112 3 Wait 198 | . 13 151 34 . Move 1539 | 20 450 103 966 . Hop . | . . . . . Pick Up 26 | . 16 . 10 . Fast Attach 12 | 3 4 . 5 . Attach 10 | . . 1 8 1 Detach 1 | . . . 1 . Swap 11 | . 2 . 9 . Drop 21 | . 3 . 16 2 Fire 115 | . 33 19 63 . Melee . | . . . . . Ram . | . . . . . Kick . | . . . . . Crush . | . . . . . Escape Stasis . | . . . . . Rewire . | . . . . . Trap . | . . . . . Miscellaneous . | . . . . . Route ------- -11/Scrapyard -10/Materials -10/Mines -10/Subcaves (discovered 3 exits: [*Mat x2] / [*Rec]) -8/Materials History --------- Turn | Location | Event 8 | -11/Scrapyard | Discovered new exit (range 15) 21 | -11/Scrapyard | Entered Materials 53 | -10/Materials | Central database locked down 210 | -10/Materials | Discovered new exit (range 12) 309 | -10/Materials | Build established: Mutant 575 | -10/Materials | Entered Mines 576 | -10/Mines | Assembled infested the area 581 | -10/Mines | Assisted by a Guerilla fighting off Assembled 585 | -10/Mines | Met a Derelict bent on vengeance 885 | -10/Mines | Discovered new exit (range 5) 891 | -10/Mines | Entered Subcaves 1359 | -10/Subcaves | Ambushed by Subdweller buried in earth 1406 | -10/Subcaves | Shifting Twisted Machinery released Scrap Shield 1412 | -10/Subcaves | Shifting Twisted Machinery released Battle Cannon 1548 | -10/Subcaves | Discovered new exit (range 12) 1620 | -10/Subcaves | Core integrity fell below 50% 1724 | -10/Subcaves | Discovered new exit (range 14) 1725 | -10/Subcaves | Core integrity fell below 20% 1873 | -10/Subcaves | Ambushed by angry Subdweller bent on revenge 1906 | -10/Subcaves | Shifting Twisted Machinery released Piercing Trap 1910 | -10/Subcaves | Shifting Twisted Machinery released Mak. Light Armor Plating 2048 | -10/Subcaves | Visited 4L-MR0's lab 2061 | -10/Subcaves | Found Flightbrick 2084 | -10/Subcaves | Shifting Twisted Machinery released Sub. Monowheel 2084 | -10/Subcaves | Discovered new exit (range 10) 2093 | -10/Subcaves | Shifting Twisted Machinery released Sub. Optics 2114 | -10/Subcaves | Entered Materials 2114 | -8/Materials | Evolved 4 slots: Propulsion x4 2115 | -8/Materials | Attached Flightbrick, gained temporary slots: Utility x3 2117 | -8/Materials | Self-destructed Last Messages --------------- their fear of my usual visitors." 02058_ Dropped Lgt. Ion Engine. 02060_ Dropped Structural Scanner. 02061_ Acquired Flightbrick. 02066_ 4L-MR0 mumbles: "Who knows where that last prototype ended up, probably tossed aside somewhere as if it were useless junk..." Sub. Monowheel falls loose from the Twisted Machinery. 02084_ EXIT=FOUND Sub. Optics falls loose from the Twisted Machinery. 02102_ 7H-ROG(z): "She is not going to be happy we haven't found any suitable candidates yet." PARAMETERS=PROPULSION+4 LOCATION=UNKNOWN GOAL=ESCAPE 02115_ Core temporarily expanded with Utility slot. 02115_ Dropped Wheel. Map ----- +----------------------------------------------------+ | ???????????????????????????????????? | | ???????????????????????????????????? | | ???????????????????????????????????? | | ???????????????????????????????????? | | ???????????????????????????????????? | | ???????????????????????????????????? | | ???????????????????????????????????? | | ???????????????????????????????????? | | ???????????????????????????????????? | | ???????????????????????????????????? | | ???????????????????????????????????? | | ???????????????????????????????????? | | ???????????????????????????????????? | | ???????????????????????????????????? | | ???????????????????????????????????? | | ???????????????????????????????????? | | ???????????????????????????????????? | | ???????????????????????????????????? | | ???????????????????????????????????? | | ???????????????????????????????????? | | ???????????????????????????????????? | | ???????????????????????????????????? | | ???????????????????????????????????? | | ?????????????########+######???????? | | ?????????? #???????? | | ?????????? @ #???????? | | ?????????? = #???????? | | ?????????????###+###########???????? | | ???????????????????????????????????? | | ???????????????????????????????????? | | ???????????????????????????????????? | | ???????????????????????????????????? | | ???????????????????????????????????? | | ???????????????????????????????????? | | ???????????????????????????????????? | | ???????????????????????????????????? | | ???????????????????????????????????? | | ???????????????????????????????????? | | ???????????????????????????????????? | | ???????????????????????????????????? | | ???????????????????????????????????? | | ???????????????????????????????????? | | ???????????????????????????????????? | | ???????????????????????????????????? | | ???????????????????????????????????? | | ???????????????????????????????????? | | ???????????????????????????????????? | | ???????????????????????????????????? | | ???????????????????????????????????? | | ???????????????????????????????????? | +----------------------------------------------------+ Best States ------------- Heat Dissipation 25 Energy Generation 15 Energy Capacity 250 Matter Stores 300 Matter Capacity 300 Sight Range 16 Terrain Scan Density 10 Armor Coverage 100 Evasion (%) 44 Targeting Accuracy 5 Item Schematics ----------------- None Robot Schematics ------------------ None Fabricated ------------ Nothing Alien Tech Used ----------------- None Achievements -------------- None Challenges ------------ None Game ------ Seed gottagofast Manual? 1 Play Time 00:29:56 Cumulative 154.9 hours Start 2024.06.02 @ 14:33:47 End 2024.06.02 @ 15:36:18 Sessions 1 Manual Loads 0 Difficulty Rogue Special Mode None Game No. 147 Rogue 147 Adventurer 0 Explorer 0 Win Type - Total 9 Types 8/0/0/1/0/0/0/0/0 Lore% 67 Gallery% 78 Achievement% 64 Wizard Run 0 Options --------- Layout 1 ASCII 0 Keyboard 0 Movement Numpad Keybinds 0 Fullscreen 1 Font 24/Smallcaps Map View 50x35 Zoom Use 0% Tactical HUD 1 Map Filters NONE Filters NONE Steam 1 RUN: 6e8a9c37-c862-4174-95af-31b6438bc25f